[Event "CZE-ch U14 Open 2023"]
[Site "Teplice"]
[Date "2023.03.11"]
[Round "1.1"]
[White "Veverka, Vladimir"]
[Black "Martirosyan, David"]
[Result "1/2-1/2"]
[ECO "D31"]
[WhiteElo "1735"]
[BlackElo "1975"]
[Annotator "TA"]
[PlyCount "69"]
[EventDate "2023.03.09"]
[EventType "swiss"]
[EventCountry "CZE"]
[SourceTitle "playchess.com"]
[Source "ChessBase"]
[SourceQuality "1"]
[TimeControl "40/5400+30:1800+30"]

{[%evp 9,69,15,15,17,8,8,6,-30,-33,-32,62,77,73,32,82,86,85,17,27,29,23,18,24,0,4,11,26,6,15,18,14,0,33,14,42,21,19,0,0,0,0,0,6,0,0,0,0,0,22,0,0,0,0,0,0,0,0,0,0,0,0,0]} 1. d4 {[%emt 0:00:17]} d5 {[%emt 0:00:15]} 2. c4 {[%emt 0:00:12]} e6 {[%emt 0:00:13]} 3. Nc3 {[%emt 0:00:09]} Bb4 {[%emt 0:00:35]} 4. Nf3 {[%emt 0:01:49]} dxc4 {[%emt 0:00:27]} 5. Qa4+ {[%emt 0:03:03]} Nc6 {[%emt 0:00:12]} 6. a3 {[%emt 0:00:58] D31: Queen's Gambit Declined: Semi-Slav without ...Nf6 (+ Marshall Gambit and Noteboom) and Exchange Variation lines without ...Nf6.} Bxc3+ {[%emt 0:00:31]} 7. bxc3 {[%emt 0:00:13]} Qd5 {[%emt 0:00:21]} 8. Bf4 {[%emt 0:04:28]} b5 {[%emt 0:01:52]} 9. Qc2 {[%emt 0:01:05]} Qd7 {[%emt 0:01:02] [#]} (9... Nf6 $15) 10. a4 $146 {[%emt 0:07:36] White is more active.} ({Predecessor:} 10. e4 Bb7 11. Be2 Nf6 12. O-O O-O 13. Bg5 Ne8 14. Rfd1 f6 15. Bf4 Ne7 16. Nd2 {½-½ Cusick,P (1966)-Menikos,D (1592) EU-ch Seniors 50 19th 2019 (3)}) 10... Ba6 {[%emt 0:03:54]} 11. e4 {[%emt 0:02:43]} Nf6 {[%emt 0:01:12]} (11... b4 $14) 12. axb5 $16 {[%emt 0:01:06]} Bxb5 {[%emt 0:01:24]} 13. Nd2 {[%emt 0:02:01]} (13. Be2 $16) 13... e5 $1 $11 {[%emt 0:09:54]} 14. Bxe5 {[%emt 0:03:46]} Nxe5 {[%emt 0:01:52]} 15. dxe5 {[%emt 0:00:25]} Ng4 {[%emt 0:00:51]} 16. Bxc4 {[%emt 0:06:51] Black must now prevent Qb3.} Nxe5 {[%emt 0:01:57]} 17. Bxb5 {[%emt 0:02:47]} Qxb5 {[%emt 0:00:57]} 18. Qa4 {[%emt 0:01:36]} c6 {[%emt 0:04:14]} 19. Qxb5 {[%emt 0:01:35]} cxb5 {[%emt 0:00:48]} 20. Ke2 {[%emt 0:00:18] Rhb1 would be deadly.} Ke7 {[%emt 0:01:02]} 21. Ra5 {[%emt 0:02:17]} (21. f4 $5 {[%cal Rf4e5]} Nc6 22. Ra6 $14) 21... Rhb8 {[%emt 0:01:02]} (21... a6 $5 {[%cal Rh8c8]}) 22. Rha1 {[%emt 0:13:56]} (22. f4 $5 {[%cal Rf4e5]} Nc4 23. Nxc4 bxc4 24. Rd1 $14) 22... Rb7 $1 {[%emt 0:00:30] The position is equal.} 23. c4 {[%emt 0:03:13]} Nxc4 {[%emt 0:04:38]} 24. Nxc4 {[%emt 0:01:08]} bxc4 {[%emt 0:00:13][%mdl 4096] Endgame KRR-KRR} 25. Rc5 {[%emt 0:00:35]} Rab8 {[%emt 0:03:44]} 26. Rxc4 {[%emt 0:04:02]} Rb2+ {[%emt 0:00:10]} 27. Kf3 {[%emt 0:04:02]} R8b3+ {[%emt 0:03:31]} 28. Kg4 {[%emt 0:00:19]} Rb7 {[%emt 0:02:05]} 29. Rca4 {[%emt 0:02:43]} Rxf2 {[%emt 0:01:50]} 30. Kg3 {[%emt 0:00:19]} Rbb2 {[%emt 0:01:50]} 31. Rxa7+ {[%emt 0:00:21]} Ke6 {[%emt 0:01:05]} 32. R7a6+ {[%emt 0:00:52]} Ke5 {[%emt 0:01:00]} 33. R6a5+ {[%emt 0:00:12]} Kd4 {[%emt 0:08:12]} 34. R1a4+ {[%emt 0:02:15]} Ke3 {[%emt 0:06:23]} 35. Ra3+ {[%emt 0:00:21] Weighted Error Value: White=0.12 (very precise) /Black=0.10 (very precise)} 1/2-1/2

[Event "CZE-ch U14 Open 2023"]
[Site "Teplice"]
[Date "2023.03.11"]
[Round "1.2"]
[White "Juhanak, Daniel"]
[Black "Andrle, Filip"]
[Result "1-0"]
[ECO "D02"]
[WhiteElo "1952"]
[BlackElo "1721"]
[Annotator "TA"]
[PlyCount "61"]
[EventDate "2023.03.09"]
[EventType "swiss"]
[EventCountry "CZE"]
[SourceTitle "playchess.com"]
[Source "ChessBase"]
[SourceQuality "1"]
[TimeControl "40/5400+30:1800+30"]

{[%evp 13,61,0,33,25,58,52,64,34,24,25,46,29,30,20,20,6,83,87,120,125,134,101,98,77,78,62,112,119,116,116,106,96,212,119,166,109,275,291,567,567,744,775,755,743,1139,1001,991,945,938,885]} 1. d4 {[%emt 0:00:02]} d5 {[%emt 0:00:16][%cal Bd7d5,Bd5c4][%mdl 32]} 2. Nf3 {[%emt 0:00:07]} Nf6 {[%emt 0:00:20]} 3. c4 {[%emt 0:00:17]} c6 {[%emt 0:00:41]} 4. g3 {[%emt 0:00:59]} dxc4 {[%emt 0:01:21]} 5. Bg2 {[%emt 0:01:26]} g6 {[%emt 0:04:54]} 6. O-O {[%emt 0:03:40]} Bg7 {[%emt 0:02:13]} 7. a4 {[%emt 0:06:51]} O-O {[%emt 0:04:32][%cal Oc6c5]} 8. Na3 $1 {[%emt 0:00:59] D73: Fianchetto Grünfeld: 5 Nf3 .} h6 {[%emt 0:05:02]} 9. Nxc4 {[%emt 0:02:12]} Be6 {[%emt 0:02:40] [#]} 10. Qd3 $146 {[%emt 0:03:52] White is slightly better.} ({Predecessor:} 10. Qc2 Na6 11. b3 Nb4 12. Qd2 a5 13. Bb2 Ne4 14. Qd1 {0-1 Injac,T (2365)-Nurgaliyev,S (2150) Sitges Sunway op 9th 2022 (4)}) 10... Na6 {[%emt 0:06:24]} 11. Bd2 {[%emt 0:04:06] Prevents Nb4.} Bd5 {[%emt 0:11:02]} 12. b4 {[%emt 0:13:30]} Nc7 {[%emt 0:04:12]} 13. Rfd1 {[%emt 0:06:02]} Be4 {[%emt 0:03:41]} 14. Qb3 {[%emt 0:02:04]} Ncd5 {[%emt 0:07:36]} (14... Ne6 $11) 15. Be1 $16 {[%emt 0:02:27]} Qc7 {[%emt 0:06:03]} 16. Rac1 {[%emt 0:02:43]} Rac8 {[%emt 0:03:37]} 17. a5 {[%emt 0:10:43]} a6 {[%emt 0:01:40]} 18. Nfd2 {[%emt 0:01:36]} Bxg2 {[%emt 0:01:54]} 19. Kxg2 {[%emt 0:01:37] Threatens to win with e4.} e6 {[%emt 0:00:41]} (19... Qb8 $14) 20. e4 {[%emt 0:04:38]} Ne7 {[%emt 0:00:31]} 21. Qf3 {[%emt 0:04:13]} Rcd8 {[%emt 0:02:02]} 22. Nb3 {[%emt 0:00:29]} Qb8 {[%emt 0:02:13]} (22... Nc8 $16 {was worth a try.}) 23. Bc3 {[%emt 0:01:19]} ({Better is} 23. Bd2 $18) 23... Ne8 {[%emt 0:03:03] [#]} (23... Nd7 $16) 24. h4 {[%emt 0:02:43]} ({White should try} 24. Bd2 $1 $18 {[%cal Rd2f4]}) 24... h5 $2 {[%emt 0:00:30] [#] Loses the game.} (24... Nd6 $16) 25. Bd2 $1 $18 {[%emt 0:01:31]} e5 $2 {[%emt 0:04:54]} (25... f5 26. Bg5 fxe4 27. Qxe4 Rf7 28. Bxe7 {[%mdl 64] Remove Defender} Rxe7 29. Qxg6 Nf6) 26. dxe5 {[%emt 0:01:29] White is clearly winning.} Bxe5 {[%emt 0:00:43]} 27. Nxe5 {[%emt 0:00:21][%cal Bc4e5,Be5d7,Bd7b8][%mdl 32]} Rxd2 {[%emt 0:01:58]} 28. Nd7 {[%emt 0:02:46]} Rxd1 {[%emt 0:04:15]} 29. Nxb8 {[%emt 0:01:02]} Rd8 {[%emt 0:00:08]} 30. Qf4 {[%emt 0:01:58]} Ng7 {[%emt 0:01:07]} 31. Qc7 {[%emt 0:01:01] Weighted Error Value: White=0.13 (very precise) /Black=0.51} 1-0

[Event "CZE-ch U14 Open 2023"]
[Site "Teplice"]
[Date "2023.03.11"]
[Round "1.3"]
[White "Hobza, Richard"]
[Black "Roubal, Matyas"]
[Result "1/2-1/2"]
[ECO "E81"]
[WhiteElo "1702"]
[BlackElo "1948"]
[Annotator "TA"]
[PlyCount "64"]
[EventDate "2023.03.09"]
[EventType "swiss"]
[EventCountry "CZE"]
[SourceTitle "playchess.com"]
[Source "ChessBase"]
[SourceQuality "1"]
[TimeControl "40/5400+30:1800+30"]

{[%evp 15,64,35,33,0,0,0,18,-2,46,0,4,17,14,10,31,19,15,0,0,0,20,18,26,22,25,28,29,0,0,0,4,0,0,0,0,0,0,0,0,0,0,0,0,0,2,2,2,2,2,2,2]} 1. d4 {[%emt 0:00:04]} Nf6 {[%emt 0:00:14]} 2. c4 {[%emt 0:00:12]} g6 {[%emt 0:00:06]} 3. Nc3 {[%emt 0:00:08]} Bg7 {[%emt 0:00:07]} 4. e4 {[%emt 0:00:11]} d6 {[%emt 0:00:07]} 5. f3 {[%emt 0:00:07]} O-O {[%emt 0:00:10]} 6. Be3 {[%emt 0:00:07]} c6 {[%emt 0:00:30]} 7. Bd3 {[%emt 0:02:47]} a6 {[%emt 0:00:59]} 8. Qd2 {[%emt 0:04:09]} b5 {[%emt 0:00:33]} 9. a3 {[%emt 0:03:49] E81: King's Indian: Sämisch: 6th move deviations (including 6 Be3 c6).} Nbd7 {[%emt 0:03:02]} 10. Nge2 {[%emt 0:01:05]} e5 {[%emt 0:08:22]} 11. d5 {[%emt 0:04:51]} cxd5 {[%emt 0:02:13] [#]} (11... bxc4 $11 12. Bxc4 Nb6 13. Bxb6 Qxb6) 12. Nxd5 $146 {[%emt 0:05:21]} (12. cxd5 $14 {might be stronger.} Nb6 13. Qc2) ({Predecessor:} 12. cxd5 Nb6 13. O-O Bd7 14. b3 Qb8 15. Na2 a5 16. Nac3 Nc8 17. a4 b4 18. Nb5 {1-0 Benidze,D (2504)-Pruijssers,R (2483) WUCC op 11th 2010 (5)}) 12... Nxd5 {[%emt 0:02:12]} 13. cxd5 {[%emt 0:00:11]} Nc5 {[%emt 0:16:54] [#] And now ...Nb3 would win.} 14. Bc2 {[%emt 0:06:43] Prevents Nb3.} Bd7 {[%emt 0:08:19]} 15. b4 {[%emt 0:01:08]} Na4 {[%emt 0:02:57]} 16. Bxa4 {[%emt 0:03:49]} bxa4 {[%emt 0:00:06]} 17. O-O {[%emt 0:01:06]} Bb5 {[%emt 0:03:23]} 18. Rfc1 {[%emt 0:03:11]} Qd7 {[%emt 0:00:18]} 19. Nc3 {[%emt 0:02:05]} Rac8 {[%emt 0:02:57]} 20. Nxb5 {[%emt 0:02:44]} axb5 {[%emt 0:00:11]} 21. Rxc8 {[%emt 0:02:18]} (21. Ra2 $5 {[%cal Ra2c2]}) 21... Rxc8 {[%emt 0:00:06] The position is equal.} 22. Rc1 {[%emt 0:00:13]} Bf6 {[%emt 0:03:13]} 23. Rc3 {[%emt 0:01:04]} Bd8 {[%emt 0:00:18]} 24. Qc2 {[%emt 0:01:01]} Rxc3 {[%emt 0:00:13]} 25. Qxc3 {[%emt 0:00:06]} Qc7 {[%emt 0:04:20]} 26. Qxc7 {[%emt 0:03:27]} Bxc7 $11 {[%emt 0:00:03][%mdl 4096] Endgame KB-KB} 27. Kf2 {[%emt 0:00:19]} Bd8 {[%emt 0:01:17]} 28. Ke2 {[%emt 0:01:31]} g5 {[%emt 0:00:49]} 29. g3 {[%emt 0:02:15][%cal Bg2g3,Bg3g4][%mdl 32]} f6 {[%emt 0:00:16]} 30. f4 {[%emt 0:01:00]} h5 {[%emt 0:01:42]} 31. fxe5 {[%emt 0:02:02]} fxe5 {[%emt 0:00:05] [#]} 32. g4 $1 {[%emt 0:01:54]} h4 {[%emt 0:00:11] A rather calm draw.   Weighted Error Value: White=0.08 (flawless) /Black=0.06 (flawless)} 1/2-1/2

[Event "CZE-ch U14 Open 2023"]
[Site "Teplice"]
[Date "2023.03.11"]
[Round "1.4"]
[White "Jasso, Matej"]
[Black "Krautschneider, Daniel Jan"]
[Result "0-1"]
[ECO "B35"]
[WhiteElo "1934"]
[BlackElo "1679"]
[Annotator "TA"]
[PlyCount "88"]
[EventDate "2023.03.09"]
[EventType "swiss"]
[EventCountry "CZE"]
[SourceTitle "playchess.com"]
[Source "ChessBase"]
[SourceQuality "1"]
[TimeControl "40/5400+30:1800+30"]

{[%evp 20,88,34,46,74,21,39,14,97,1,256,246,247,146,150,121,151,-237,-246,-246,-236,-427,-427,-434,-326,-327,-326,-312,-275,-267,-256,-246,-244,-258,-258,-253,-258,-260,-256,-265,-263,-391,-317,-314,-291,-345,-270,-247,-220,-435,-433,-433,-430,-425,-420,-410,-364,-464,-431,-472,-472,-475,-374,-438,-433,-610,-598,-7088,-10682,-5691,-5203]} 1. e4 {[%emt 0:00:04]} c5 {[%emt 0:00:05]} 2. Nf3 {[%emt 0:00:08]} Nc6 {[%emt 0:00:04]} 3. d4 {[%emt 0:00:05]} cxd4 {[%emt 0:00:05]} 4. Nxd4 {[%emt 0:00:05]} g6 {[%emt 0:00:08]} 5. Be3 {[%emt 0:00:08]} Bg7 {[%emt 0:00:42]} 6. Nc3 {[%emt 0:00:08]} Nf6 {[%emt 0:00:06]} 7. Bc4 {[%emt 0:00:08]} O-O {[%emt 0:00:07]} 8. Bb3 {[%emt 0:00:05]} d6 {[%emt 0:00:25]} 9. f3 {[%emt 0:00:05]} Bd7 {[%emt 0:00:05]} 10. Qd2 {[%emt 0:00:16]} Rc8 {[%emt 0:01:38]} 11. O-O-O {[%emt 0:00:19]} a5 {[%emt 0:00:18] B78: Sicilian Dragon: Yugoslav Attack, 9 Bc4 Bd7 10 0-0-0 Rc8.} 12. Nxc6 {[%emt 0:08:43]} (12. Ndb5 $16) 12... Bxc6 $11 {[%emt 0:00:21]} 13. a4 {[%emt 0:00:13]} Qd7 {[%emt 0:02:46] [#]} (13... Qe8 $11 {remains equal.}) 14. Bb6 $146 {[%emt 0:01:26]} (14. Bh6 $16) ({Predecessor:} 14. Rhe1 Nh5 15. Nd5 Bxd5 16. exd5 b5 17. Qxa5 bxa4 18. Bxa4 Qf5 19. g4 Qxf3 20. gxh5 {0-1 Trevis,R (1041)-Pons,F (1213) RF-2013-0-00166}) 14... Nxe4 $2 {[%emt 0:28:19][%mdl 8192]} 15. fxe4 $18 {[%emt 0:24:25]} (15. Nxe4 Bxa4 16. Bxa4 Qxa4 $16) 15... Bxc3 {[%emt 0:00:18]} 16. Qxc3 {[%emt 0:00:05]} ({White should play} 16. bxc3 $18 {aiming for Qh6.} Bxa4 17. Bd5 (17. Bxa5 Bxb3 18. cxb3 Qb5 $17)) 16... Bxa4 $16 {[%emt 0:00:48]} 17. Qe3 {[%emt 0:00:17]} (17. Qxa5 $2 {perishes.} Bxb3 18. c3 Ra8 $19) 17... Qc6 {[%emt 0:02:47]} 18. Rd4 $2 {[%emt 0:06:51]} (18. Bxa5 $16 {stays on course. Bxa4 is the strong threat.} Bxb3 19. Qxb3) 18... Qxb6 $19 {[%emt 0:03:27] White is on the road to losing.} 19. Bxa4 {[%emt 0:00:17] Qd3 would be deadly.} (19. Rxa4 $2 {too greedy.} Qxe3+ 20. Kb1 Qd2 $19) 19... Rc4 {[%emt 0:02:23][%mdl 64] Pin} 20. c3 {[%emt 0:08:39] [#]} (20. Rd3 {was necessary.} Qxe3+ 21. Rxe3 Rxa4 22. Rhe1) 20... Rxa4 $1 {[%emt 0:00:56][%mdl 512]} 21. Kc2 {[%emt 0:00:09]} Rxd4 {[%emt 0:00:47]} 22. Qxd4 {[%emt 0:00:07]} Qxd4 {[%emt 0:00:09]} 23. cxd4 {[%emt 0:00:04][%mdl 4096] Endgame KR-KR} Rc8+ {[%emt 0:00:06]} 24. Kd3 {[%emt 0:00:07]} Kf8 {[%emt 0:00:12]} 25. Ra1 {[%emt 0:00:08]} b6 {[%emt 0:00:27]} 26. Ra4 {[%emt 0:03:14]} Ke8 {[%emt 0:00:28]} 27. b4 {[%emt 0:00:10]} Ra8 {[%emt 0:03:25]} 28. Kc4 {[%emt 0:00:13]} Kd7 {[%emt 0:00:30]} 29. Kb5 {[%emt 0:01:21]} Rc8 {[%emt 0:06:08]} 30. d5 {[%emt 0:19:05]} (30. Ra2 $142) 30... f6 {[%emt 0:01:31]} 31. Ra2 {[%emt 0:02:40]} Rc3 {[%emt 0:02:11]} 32. Re2 {[%emt 0:03:35]} Rc1 {[%emt 0:01:27]} 33. bxa5 {[%emt 0:02:35]} Rb1+ {[%emt 0:00:40][%mdl 64] [#] Deflection} 34. Kc4 $2 {[%emt 0:07:47]} (34. Ka6 bxa5 35. Kxa5) 34... bxa5 {[%emt 0:01:18][%cal Bb6a5,Ba5a4,Ba4a3,Ba3a2][%mdl 32]} 35. Ra2 {[%emt 0:00:39]} Rb4+ {[%emt 0:00:09]} 36. Kd3 {[%emt 0:00:14]} a4 {[%emt 0:00:10]} 37. g4 {[%emt 0:02:03]} e6 {[%emt 0:01:52] White must now prevent ...exd5.} 38. h3 {[%emt 0:01:41]} f5 {[%emt 0:06:47]} 39. exf5 {[%emt 0:03:02]} exf5 {[%emt 0:00:29]} (39... gxf5 $2 {is the wrong capture.} 40. Kc3 Rf4 41. Rd2 $19) 40. gxf5 {[%emt 0:00:13]} gxf5 {[%emt 0:00:25]} 41. Rf2 {[%emt 0:35:50]} a3 {[%emt 0:31:20] Black is clearly winning.} 42. Kc3 {[%emt 0:01:26] Prevents Rb3+.} (42. Rxf5 $142 Kc7 43. Rf1) 42... Ra4 {[%emt 0:00:58] ( -> ...a2)} 43. Rf1 {[%emt 0:02:36]} a2 {[%emt 0:00:10]} 44. Ra1 {[%emt 0:00:03]} Ke7 {[%emt 0:00:11] Weighted Error Value: White=0.82/Black=0.31} 0-1

[Event "CZE-ch U14 Open 2023"]
[Site "Teplice"]
[Date "2023.03.11"]
[Round "1.5"]
[White "Soucek, Andrej"]
[Black "Zelba, Lukas"]
[Result "1/2-1/2"]
[ECO "E17"]
[WhiteElo "1679"]
[BlackElo "1912"]
[Annotator "TA"]
[PlyCount "84"]
[EventDate "2023.03.09"]
[EventType "swiss"]
[EventCountry "CZE"]
[SourceTitle "playchess.com"]
[Source "ChessBase"]
[SourceQuality "1"]
[TimeControl "40/5400+30:1800+30"]

{[%evp 20,84,0,0,0,0,9,-2,-10,-16,-3,-30,37,25,40,-104,-113,-118,-107,-198,-194,-207,-147,-168,-149,-179,-164,-372,-375,-433,-159,-162,-159,-159,-153,-184,-177,-177,-125,-136,-135,-125,-114,-124,0,0,0,-144,-127,-130,-50,-45,-43,-68,-61,-57,-50,-62,-22,-22,-22,-22,-22,-22,-9,-8,0]} 1. d4 {[%emt 0:00:03]} e6 {[%emt 0:01:31]} 2. Nf3 {[%emt 0:00:15]} Nf6 {[%emt 0:00:56]} 3. c4 {[%emt 0:00:08]} b6 {[%emt 0:00:33]} 4. g3 {[%emt 0:00:20]} Bb7 {[%emt 0:04:57]} 5. Bg2 {[%emt 0:01:03]} Be7 {[%emt 0:05:33]} 6. O-O {[%emt 0:02:55]} O-O {[%emt 0:00:18]} 7. d5 {[%emt 0:00:18]} exd5 {[%emt 0:01:15]} 8. Nh4 {[%emt 0:00:04]} c6 {[%emt 0:02:41]} 9. cxd5 {[%emt 0:00:09]} Nxd5 {[%emt 0:05:56]} 10. Nf5 {[%emt 0:00:29]} Nc7 {[%emt 0:07:48]} 11. e4 {[%emt 0:02:56]} (11. Qd4 Bf6 12. Qd6 Re8 $17) 11... d5 {[%emt 0:04:04] E17: Queen's Indian: 4 g3 Bb7 5 Bg2 Be7.} 12. exd5 {[%emt 0:10:57]} Nxd5 {[%emt 0:04:12]} 13. Qg4 {[%emt 0:09:36][%csl Gf5][%cal Rg4g7]} (13. Nc3 {simplifies} Bf6 14. Nxd5 cxd5 15. Ne3) 13... Bf6 {[%emt 0:02:18]} 14. Nc3 {[%emt 0:24:10]} Nd7 {[%emt 0:10:29]} 15. Bf4 {[%emt 0:20:37]} Nxc3 {[%emt 0:04:35]} (15... Nxf4 $11 16. Qxf4 Be5) 16. bxc3 $14 {[%emt 0:00:05]} Ne5 $1 {[%emt 0:02:40] [#]} (16... Bxc3 $2 17. Rad1 Kh8 18. Rd3 $18) 17. Qh5 $146 {[%emt 0:09:12]} (17. Bxe5 $14 {stays ahead.} Bxe5 18. f4 Bxc3 19. Rad1) ({Predecessor:} 17. Bxe5 Bxe5 18. Rad1 Qf6 19. Nd6 Bxd6 20. Qd7 Bc5 21. Qxb7 Qxc3 22. Bxc6 Rab8 23. Qd7 {½-½ Khomeriki,N (2319)-Rasulov,V (2478) Titled Tuesday intern op 5th May blitz 2020 (1)}) 17... g6 $17 {[%emt 0:13:48]} 18. Nh6+ {[%emt 0:02:42]} Kg7 {[%emt 0:00:48]} 19. Qe2 {[%emt 0:04:08] [#]} (19. Qh3 $17) 19... Qd3 $1 $19 {[%emt 0:03:38]} 20. Rfe1 {[%emt 0:03:04]} Ba6 {[%emt 0:03:01]} (20... Qxc3 21. Rac1 Qa5 22. Bxe5 Bxe5 23. Qxe5+ Qxe5 24. Rxe5 Kxh6 25. Re7 $17) 21. Qb2 {[%emt 0:02:54]} Rfe8 {[%emt 0:07:49]} 22. Re3 {[%emt 0:04:10] [#] Repels Nf3+} Qd7 $1 {[%emt 0:00:48]} 23. Rae1 $2 {[%emt 0:00:55]} (23. Qa3 Bc4 24. h3) 23... Nc4 {[%emt 0:03:57][%csl LRb2,LRe3]} 24. Rxe8 {[%emt 0:00:22]} Rxe8 {[%emt 0:00:04]} (24... Nxb2 $19 {has better winning chances.} 25. Rxa8 g5) 25. Rxe8 $17 {[%emt 0:00:30]} Qxe8 {[%emt 0:00:06]} (25... Nxb2 $2 26. Rg8#) (25... Qd1+ 26. Bf1 $16) 26. Qc1 {[%emt 0:00:07] Against Qe1+} Ne5 {[%emt 0:01:23] Prevents Ng4. Threatens to win with ...Nd3.} 27. Qe3 {[%emt 0:00:44] [#] Wards off Nd3} Qd7 $1 {[%emt 0:01:59] Wards off Ng4. ( -> ...Qd1+)} 28. h4 {[%emt 0:00:22]} (28. h3 Nd3) 28... Nd3 {[%emt 0:02:48]} (28... Qe6 $19 29. Bxe5 Qxe5) 29. Ng4 {[%emt 0:01:11][%mdl 64] Back Rank, Clearance} Nxf4 {[%emt 0:01:01][%mdl 64] Deflection} (29... Qxg4 $2 {is a self mate.} 30. Bh6+ Kh8 31. Qe8#) 30. Qxf4 {[%emt 0:00:31] White wants to mate with Qh6+.} Bxc3 {[%emt 0:01:46] This pair of bishops is nice.} 31. h5 {[%emt 0:00:09]} f5 {[%emt 0:02:09]} (31... Kf8 $17 {...c5 would be deadly.} 32. h6 Bc8) 32. Qh6+ $11 {[%emt 0:00:42]} Kg8 {[%emt 0:00:22]} 33. Ne3 {[%emt 0:00:25] Against Qd1+} (33. hxg6 $1 $11 Qg7 34. gxh7+ Kh8 35. Qxc6 fxg4 36. Be4) 33... Bg7 $17 {[%emt 0:00:58]} 34. Qf4 {[%emt 0:00:10]} Kf7 {[%emt 0:00:46]} ({Stronger than} 34... gxh5 35. Nxf5 Bd3 36. Nxg7 Kxg7 37. Qg5+ Bg6 38. Qe5+ Kf7 39. Bf3 $11) (34... Bf8 $17 35. Bf3 Bc5) 35. g4 $15 {[%emt 0:00:45]} Bd3 {[%emt 0:00:21]} 36. Bh3 {[%emt 0:00:26][%cal Rg4f5]} Bf6 {[%emt 0:00:38] White must now prevent ...g5.} 37. hxg6+ {[%emt 0:00:15]} hxg6 {[%emt 0:00:06] Strongly threatening ...g5.} 38. gxf5 {[%emt 0:00:06]} Bxf5 {[%emt 0:00:19]} (38... g5 $5 {[%cal Rg5f4]} 39. Qf3 Bb1 $15) 39. Nxf5 {[%emt 0:00:20] The position is equal.} gxf5 {[%emt 0:00:22]} 40. Bxf5 {[%emt 0:00:14] KQB-KQB} Qd1+ {[%emt 0:00:11]} 41. Kg2 {[%emt 0:30:48]} Qd5+ {[%emt 0:30:56]} 42. Be4 {[%emt 0:00:36]} Qg5+ {[%emt 0:01:02] And White is the lucky defender. An interesting game.   Weighted Error Value: White=0.32/Black=0.27 (precise)} 1/2-1/2

[Event "CZE-ch U14 Open 2023"]
[Site "Teplice"]
[Date "2023.03.11"]
[Round "1.6"]
[White "Topencik, Bruno"]
[Black "Vlcek, Vojtech"]
[Result "1-0"]
[ECO "B20"]
[WhiteElo "1844"]
[BlackElo "1671"]
[Annotator "NA RC COMBH"]
[PlyCount "93"]
[EventDate "2023.03.09"]
[EventType "swiss"]
[EventCountry "CZE"]
[SourceTitle "playchess.com"]
[Source "ChessBase"]
[SourceQuality "1"]
[TimeControl "40/5400+30:1800+30"]

1. e4 c5 2. Be2 Nc6 {[%emt 0:00:24]} 3. f4 {[%emt 0:00:15]} e6 {[%emt 0:00:20]} 4. Nf3 {[%emt 0:00:41]} d5 {[%emt 0:00:38]} 5. d3 {[%emt 0:00:05]} Bd6 {[%emt 0:01:14]} 6. O-O {[%emt 0:00:38]} Nge7 {[%emt 0:01:37]} 7. c3 {[%emt 0:01:49]} f6 {[%emt 0:02:16]} 8. Na3 {[%emt 0:01:40]} a6 {[%emt 0:02:12]} 9. Nc2 {[%emt 0:04:04]} Qc7 {[%emt 0:01:24]} 10. g3 {[%emt 0:05:21]} b6 {[%emt 0:05:56]} 11. Ne3 {[%emt 0:12:41]} Bb7 {[%emt 0:03:41]} 12. exd5 {[%emt 0:04:42]} exd5 {[%emt 0:01:48]} 13. d4 {[%emt 0:01:09]} cxd4 {[%emt 0:14:08]} 14. Nxd4 {[%emt 0:08:41]} Nxd4 {[%emt 0:05:48]} 15. cxd4 {[%emt 0:02:17]} O-O {[%emt 0:01:31]} 16. Bf3 {[%emt 0:06:11]} b5 {[%emt 0:03:08]} 17. Qb3 {[%emt 0:03:09]} Qc6 {[%emt 0:06:09]} 18. Bd2 {[%emt 0:05:10]} Qb6 {[%emt 0:00:33]} 19. Nxd5 {[%emt 0:10:25]} Nxd5 {[%emt 0:08:36]} 20. Bxd5+ {[%emt 0:00:23]} Bxd5 {[%emt 0:00:04]} 21. Qxd5+ {[%emt 0:00:07]} Kh8 {[%emt 0:00:03]} 22. Be3 {[%emt 0:05:57]} Rad8 {[%emt 0:03:33]} 23. Qf3 {[%emt 0:01:50]} Rfe8 {[%emt 0:00:19]} 24. Rfe1 {[%emt 0:01:00]} Bb4 {[%emt 0:02:46]} 25. Re2 {[%emt 0:05:10]} Qe6 {[%emt 0:00:34]} 26. a3 {[%emt 0:02:47]} Ba5 {[%emt 0:00:12]} 27. b4 {[%emt 0:01:05]} Bb6 {[%emt 0:00:17]} 28. Rae1 {[%emt 0:01:52]} Qc4 {[%emt 0:03:59]} 29. Bf2 {[%emt 0:01:39]} Rxe2 {[%emt 0:00:59]} 30. Qxe2 {[%emt 0:00:46]} h6 {[%emt 0:03:11]} 31. Qe7 {[%emt 0:04:41]} Rc8 {[%emt 0:01:11]} 32. Qd6 {[%emt 0:01:46]} Qc6 {[%emt 0:02:38]} 33. Qxc6 {[%emt 0:02:20]} Rxc6 {[%emt 0:00:05]} 34. d5 {[%emt 0:01:17]} Bxf2+ {[%emt 0:02:14]} 35. Kxf2 {[%emt 0:00:04]} Rd6 {[%emt 0:00:08]} 36. Rd1 {[%emt 0:00:52]} Kg8 {[%emt 0:00:07]} 37. Ke3 {[%emt 0:00:11]} Kf7 {[%emt 0:01:07]} 38. Kd4 {[%emt 0:00:42]} Ke7 {[%emt 0:02:29]} 39. Kc5 {[%emt 0:01:02]} Rd8 {[%emt 0:00:27]} 40. Re1+ {[%emt 0:03:49]} Kd7 {[%emt 0:00:44]} 41. Re6 {[%emt 0:05:33]} Ra8 {[%emt 0:03:54]} 42. Rb6 {[%emt 0:00:59]} Ra7 {[%emt 0:01:57]} 43. Rd6+ {[%emt 0:01:21]} Kc7 {[%emt 0:00:18]} 44. Rc6+ {[%emt 0:00:41]} Kd7 {[%emt 0:00:07]} 45. Kb6 {[%emt 0:00:20]} Ra8 {[%emt 0:00:09]} 46. Ka5 {[%emt 0:03:40]} Re8 {[%emt 0:01:04]} 47. Rxa6 1-0